[Event "Titled Tuesday Blitz March 15 Early 2022"]
[White "Donchenko, Alexander"]
[Black "Svane, Rasmus"]
[WhiteFideId "24603295"]
[BlackFideId "4657101"]
[WhiteElo "2539"]
[BlackElo "2645"]
[Result "1-0"]
[Round "07"]
[TimeControl "180+1"]
[Date "2022.03.15"]
[WhiteClock "0:00:02"]
[BlackClock "0:00:03"]

1. c4 {[%clk 0:03:00]}  Nf6 {[%clk 0:02:59]} 2. g3 {[%clk 0:03:01]}  e6 {[%clk 0:02:55]} 3. Bg2 {[%clk 0:03:01]}  d5 {[%clk 0:02:56]} 4. Nf3 {[%clk 0:03:01]}  Be7 {[%clk 0:02:56]} 5. O-O {[%clk 0:03:01]}  O-O {[%clk 0:02:57]} 6. b3 {[%clk 0:03:01]}  d4 {[%clk 0:02:57]} 7. Ne5 {[%clk 0:03:01]}  Bd6 {[%clk 0:02:56]} 8. Nd3 {[%clk 0:02:57]}  Nc6 {[%clk 0:02:46]} 9. Ba3 {[%clk 0:02:49]}  Re8 {[%clk 0:02:35]} 10. e4 {[%clk 0:02:43]}  e5 {[%clk 0:02:27]} 11. h3 {[%clk 0:02:31]}  a5 {[%clk 0:02:26]} 12. Qe2 {[%clk 0:02:26]}  Qe7 {[%clk 0:02:25]} 13. c5 {[%clk 0:02:26]}  b6 {[%clk 0:02:20]} 14. cxd6 {[%clk 0:02:25]}  cxd6 {[%clk 0:02:21]} 15. Nb2 {[%clk 0:02:21]}  Ba6 {[%clk 0:02:21]} 16. d3 {[%clk 0:02:13]}  b5 {[%clk 0:02:22]} 17. Nd1 {[%clk 0:02:13]}  b4 {[%clk 0:02:15]} 18. Bc1 {[%clk 0:02:10]}  Na7 {[%clk 0:02:15]} 19. a4 {[%clk 0:02:08]}  Qe6 {[%clk 0:02:10]} 20. Nd2 {[%clk 0:02:06]}  d5 {[%clk 0:02:11]} 21. exd5 {[%clk 0:01:59]}  Nxd5 {[%clk 0:02:12]} 22. Nc4 {[%clk 0:01:59]}  Nc6 {[%clk 0:02:08]} 23. f4 {[%clk 0:01:41]}  Nc3 {[%clk 0:02:00]} 24. Nxc3 {[%clk 0:01:40]}  dxc3 {[%clk 0:02:01]} 25. fxe5 {[%clk 0:01:37]}  Nd4 {[%clk 0:01:57]} 26. Qf2 {[%clk 0:01:16]}  Nxb3 {[%clk 0:01:56]} 27. Rb1 {[%clk 0:01:17]}  Nxc1 {[%clk 0:01:43]} 28. Rbxc1 {[%clk 0:01:17]}  Rad8 {[%clk 0:01:27]} 29. Nd6 {[%clk 0:01:15]}  Re7 {[%clk 0:01:25]} 30. Be4 {[%clk 0:01:04]}  Rf8 {[%clk 0:01:06]} 31. Nf5 {[%clk 0:00:58]}  Ree8 {[%clk 0:00:53]} 32. Nd6 {[%clk 0:00:53]}  Re7 {[%clk 0:00:51]} 33. Rce1 {[%clk 0:00:53]}  g6 {[%clk 0:00:50]} 34. Nb5 {[%clk 0:00:26]}  Bxb5 {[%clk 0:00:39]} 35. axb5 {[%clk 0:00:27]}  b3 {[%clk 0:00:40]} 36. d4 {[%clk 0:00:26]}  c2 {[%clk 0:00:35]} 37. d5 {[%clk 0:00:22]}  Qc8 {[%clk 0:00:30]} 38. Bd3 {[%clk 0:00:13]}  a4 {[%clk 0:00:21]} 39. d6 {[%clk 0:00:13]}  Re6 {[%clk 0:00:19]} 40. b6 {[%clk 0:00:12]}  a3 {[%clk 0:00:17]} 41. b7 {[%clk 0:00:11]}  Qxb7 {[%clk 0:00:13]} 42. Bc4 {[%clk 0:00:11]}  Ree8 {[%clk 0:00:08]} 43. e6 {[%clk 0:00:06]}  fxe6 {[%clk 0:00:05]} 44. Bxe6+ {[%clk 0:00:06]}  Kh8 {[%clk 0:00:05]} 45. Qd4+ {[%clk 0:00:06]}  Qg7 {[%clk 0:00:05]} 46. Rxf8+ {[%clk 0:00:05]}  Rxf8 {[%clk 0:00:05]} 47. Qxg7+ {[%clk 0:00:06]}  Kxg7 {[%clk 0:00:06]} 48. Bxb3 {[%clk 0:00:06]}  Rd8 {[%clk 0:00:06]} 49. Bxc2 {[%clk 0:00:05]}  Rxd6 {[%clk 0:00:06]} 50. Re7+ {[%clk 0:00:04]}  Kf6 {[%clk 0:00:06]} 51. Ra7 {[%clk 0:00:05]}  Rd2 {[%clk 0:00:06]} 52. Bb3 {[%clk 0:00:02]}  Rd3 {[%clk 0:00:06]} 53. Bc4 {[%clk 0:00:02]}  Rxg3+ {[%clk 0:00:06]} 54. Kh2 {[%clk 0:00:03]}  Rc3 {[%clk 0:00:07]} 55. Bg8 {[%clk 0:00:03]}  h5 {[%clk 0:00:07]} 56. Ra6+ {[%clk 0:00:03]}  Kg5 {[%clk 0:00:08]} 57. Bf7 {[%clk 0:00:03]}  h4 {[%clk 0:00:05]} 58. Rxg6+ {[%clk 0:00:03]}  Kf5 {[%clk 0:00:04]} 59. Ra6 {[%clk 0:00:03]}  Rc2+ {[%clk 0:00:04]} 60. Kg1 {[%clk 0:00:04]}  Rc3 {[%clk 0:00:05]} 61. Kf2 {[%clk 0:00:04]}  Kf4 {[%clk 0:00:05]} 62. Be6 {[%clk 0:00:04]}  Rc2+ {[%clk 0:00:04]} 63. Ke1 {[%clk 0:00:05]}  Rc3 {[%clk 0:00:04]} 64. Kd2 {[%clk 0:00:04]}  Rf3 {[%clk 0:00:04]} 65. Bg4 {[%clk 0:00:04]}  Rb3 {[%clk 0:00:03]} 66. Kc2 {[%clk 0:00:04]}  Re3 {[%clk 0:00:03]} 67. Kb1 {[%clk 0:00:03]}  Kg3 {[%clk 0:00:03]} 68. Ka2 {[%clk 0:00:03]}  Rc3 {[%clk 0:00:03]} 69. Rf6 {[%clk 0:00:03]}  Re3 {[%clk 0:00:03]} 70. Rf1 {[%clk 0:00:03]}  Rc3 {[%clk 0:00:03]} 71. Re1 {[%clk 0:00:03]}  Rd3 {[%clk 0:00:03]} 72. Re2 {[%clk 0:00:03]}  Rc3 {[%clk 0:00:04]} 73. Rd2 {[%clk 0:00:03]}  Re3 {[%clk 0:00:04]} 74. Rd6 {[%clk 0:00:03]}  Rc3 {[%clk 0:00:04]} 75. Bd7 {[%clk 0:00:03]}  Re3 {[%clk 0:00:04]} 76. Rg6+ {[%clk 0:00:03]}  Kf3 {[%clk 0:00:02]} 77. Rg4 {[%clk 0:00:03]}  Re4 {[%clk 0:00:03]} 78. Bc6 {[%clk 0:00:02]} 1-0


[Site "https://www.chess.com"]

[Event "Titled Tuesday Blitz March 15 Early 2022"]
[White "Fiorito, Fabian"]
[Black "Hambleton, Aman"]
[WhiteFideId "100200"]
[BlackFideId "2606577"]
[WhiteElo "2395"]
[BlackElo "2552"]
[Result "0-1"]
[Round "07"]
[TimeControl "180+1"]
[Date "2022.03.15"]
[WhiteClock "0:00:01"]
[BlackClock "0:00:03"]

1. d4 {[%clk 0:03:00]}  e5 {[%clk 0:02:59]} 2. dxe5 {[%clk 0:03:00]}  Nc6 {[%clk 0:02:59]} 3. Nf3 {[%clk 0:03:00]}  Qe7 {[%clk 0:02:58]} 4. Bg5 {[%clk 0:03:00]}  Qb4+ {[%clk 0:02:58]} 5. Bd2 {[%clk 0:03:01]}  Qxb2 {[%clk 0:02:59]} 6. Nc3 {[%clk 0:03:02]}  Bb4 {[%clk 0:02:59]} 7. Rb1 {[%clk 0:03:01]}  Qxc3 {[%clk 0:03:00]} 8. Bxc3 {[%clk 0:02:48]}  Bxc3+ {[%clk 0:03:00]} 9. Nd2 {[%clk 0:02:48]}  Bxe5 {[%clk 0:03:00]} 10. g3 {[%clk 0:02:46]}  Nf6 {[%clk 0:03:00]} 11. Bg2 {[%clk 0:02:47]}  O-O {[%clk 0:03:00]} 12. O-O {[%clk 0:02:47]}  d5 {[%clk 0:03:00]} 13. Nf3 {[%clk 0:02:46]}  Bd6 {[%clk 0:03:00]} 14. h3 {[%clk 0:02:45]}  Rd8 {[%clk 0:02:37]} 15. e3 {[%clk 0:02:44]}  h6 {[%clk 0:02:03]} 16. Qe2 {[%clk 0:02:27]}  Ne7 {[%clk 0:01:31]} 17. Rfd1 {[%clk 0:02:22]}  b6 {[%clk 0:01:18]} 18. c4 {[%clk 0:02:21]}  Ba6 {[%clk 0:01:16]} 19. Nd2 {[%clk 0:02:17]}  Rab8 {[%clk 0:01:10]} 20. e4 {[%clk 0:02:05]}  dxe4 {[%clk 0:01:02]} 21. Nxe4 {[%clk 0:02:04]}  Nxe4 {[%clk 0:01:02]} 22. Bxe4 {[%clk 0:02:04]}  Ng6 {[%clk 0:00:46]} 23. Bxg6 {[%clk 0:01:56]}  fxg6 {[%clk 0:00:46]} 24. h4 {[%clk 0:01:37]}  Re8 {[%clk 0:00:26]} 25. Qc2 {[%clk 0:01:34]}  Re6 {[%clk 0:00:20]} 26. Re1 {[%clk 0:01:33]}  Rf6 {[%clk 0:00:20]} 27. Kh2 {[%clk 0:01:17]}  Rbf8 {[%clk 0:00:20]} 28. f4 {[%clk 0:01:18]}  g5 {[%clk 0:00:20]} 29. Qa4 {[%clk 0:00:53]}  Bc8 {[%clk 0:00:13]} 30. hxg5 {[%clk 0:00:51]}  hxg5 {[%clk 0:00:14]} 31. Re8 {[%clk 0:00:52]}  gxf4 {[%clk 0:00:13]} 32. Rxf8+ {[%clk 0:00:51]}  Kxf8 {[%clk 0:00:05]} 33. gxf4 {[%clk 0:00:47]}  Rxf4 {[%clk 0:00:04]} 34. Kg1 {[%clk 0:00:33]}  Be6 {[%clk 0:00:03]} 35. Re1 {[%clk 0:00:18]}  Rxc4 {[%clk 0:00:02]} 36. Qxa7 {[%clk 0:00:16]}  Rg4+ {[%clk 0:00:02]} 37. Kf2 {[%clk 0:00:12]}  Bg3+ {[%clk 0:00:01]} 38. Ke2 {[%clk 0:00:08]}  Re4+ {[%clk 0:00:01]} 39. Kf3 {[%clk 0:00:08]}  Rxe1 {[%clk 0:00:01]} 40. Kxg3 {[%clk 0:00:09]}  Rc1 {[%clk 0:00:01]} 41. Kf4 {[%clk 0:00:08]}  Rc5 {[%clk 0:00:01]} 42. Qb8+ {[%clk 0:00:07]}  Kf7 {[%clk 0:00:02]} 43. a3 {[%clk 0:00:07]}  g5+ {[%clk 0:00:02]} 44. Kg3 {[%clk 0:00:07]}  g4 {[%clk 0:00:03]} 45. Qh8 {[%clk 0:00:06]}  Ke7 {[%clk 0:00:04]} 46. Qg7+ {[%clk 0:00:05]}  Kd6 {[%clk 0:00:04]} 47. Qd4+ {[%clk 0:00:05]}  Rd5 {[%clk 0:00:04]} 48. Qf4+ {[%clk 0:00:05]}  Kc6 {[%clk 0:00:04]} 49. Qa4+ {[%clk 0:00:05]}  Kd6 {[%clk 0:00:02]} 50. Kf4 {[%clk 0:00:03]}  Bd7 {[%clk 0:00:02]} 51. Qa7 {[%clk 0:00:03]}  Bc6 {[%clk 0:00:02]} 52. Kg3 {[%clk 0:00:04]}  Rd4 {[%clk 0:00:02]} 53. Qb8 {[%clk 0:00:05]}  Bd7 {[%clk 0:00:01]} 54. Qf8+ {[%clk 0:00:05]}  Kd5 {[%clk 0:00:01]} 55. Qg8+ {[%clk 0:00:04]}  Kc5 {[%clk 0:00:02]} 56. Qd8 {[%clk 0:00:05]}  c6 {[%clk 0:00:02]} 57. Qc7 {[%clk 0:00:06]}  b5 {[%clk 0:00:02]} 58. Qa7+ {[%clk 0:00:06]}  Kd5 {[%clk 0:00:02]} 59. a4 {[%clk 0:00:07]}  Be6 {[%clk 0:00:02]} 60. axb5 {[%clk 0:00:07]}  cxb5 {[%clk 0:00:03]} 61. Qb7+ {[%clk 0:00:07]}  Kc5 {[%clk 0:00:03]} 62. Qb8 {[%clk 0:00:08]}  Bd5 {[%clk 0:00:03]} 63. Qc7+ {[%clk 0:00:08]}  Kb4 {[%clk 0:00:04]} 64. Qe7+ {[%clk 0:00:07]}  Kc3 {[%clk 0:00:04]} 65. Qa7 {[%clk 0:00:08]}  b4 {[%clk 0:00:04]} 66. Qc5+ {[%clk 0:00:08]}  Bc4 {[%clk 0:00:04]} 67. Qe5 {[%clk 0:00:09]}  b3 {[%clk 0:00:05]} 68. Kf2 {[%clk 0:00:07]}  Kd3 {[%clk 0:00:04]} 69. Qf5+ {[%clk 0:00:07]}  Kd2 {[%clk 0:00:04]} 70. Qg5+ {[%clk 0:00:06]}  Kc3 {[%clk 0:00:04]} 71. Qe3+ {[%clk 0:00:03]}  Rd3 {[%clk 0:00:04]} 72. Qe5+ {[%clk 0:00:03]}  Kc2 {[%clk 0:00:04]} 73. Qe4 {[%clk 0:00:01]}  Kc3 {[%clk 0:00:03]} 74. Qe5+ {[%clk 0:00:01]}  Kb4 {[%clk 0:00:03]} 75. Qb8+ {[%clk 0:00:01]}  Bb5 {[%clk 0:00:03]} 76. Qd6+ {[%clk 0:00:01]}  Rxd6 {[%clk 0:00:03]} 0-1


[Site "https://www.chess.com"]

[Event "Titled Tuesday Blitz March 15 Early 2022"]
[White "Gurevich, Dmitry"]
[Black "Harikrishna, Pentala"]
[WhiteFideId "2000407"]
[BlackFideId "5007003"]
[WhiteElo "2506"]
[BlackElo "2574"]
[Result "0-1"]
[Round "07"]
[TimeControl "180+1"]
[Date "2022.03.15"]
[WhiteClock "0:00:07"]
[BlackClock "0:00:13"]

1. d4 {[%clk 0:03:00]}  d5 {[%clk 0:02:57]} 2. c4 {[%clk 0:03:00]}  dxc4 {[%clk 0:02:57]} 3. Nf3 {[%clk 0:02:59]}  Nf6 {[%clk 0:02:57]} 4. g3 {[%clk 0:02:57]}  b6 {[%clk 0:02:55]} 5. Bg2 {[%clk 0:02:57]}  Bb7 {[%clk 0:02:55]} 6. O-O {[%clk 0:02:54]}  Nbd7 {[%clk 0:02:54]} 7. Qa4 {[%clk 0:02:52]}  e6 {[%clk 0:02:50]} 8. Qxc4 {[%clk 0:02:52]}  Be7 {[%clk 0:02:49]} 9. Nc3 {[%clk 0:02:50]}  O-O {[%clk 0:02:46]} 10. Rd1 {[%clk 0:02:49]}  Rc8 {[%clk 0:02:45]} 11. Bf4 {[%clk 0:02:45]}  a6 {[%clk 0:02:44]} 12. Qb3 {[%clk 0:02:42]}  b5 {[%clk 0:02:40]} 13. Ne5 {[%clk 0:02:37]}  Bxg2 {[%clk 0:02:36]} 14. Kxg2 {[%clk 0:02:36]}  Nxe5 {[%clk 0:02:32]} 15. dxe5 {[%clk 0:02:35]}  Nd7 {[%clk 0:02:33]} 16. Ne4 {[%clk 0:02:32]}  Qe8 {[%clk 0:02:25]} 17. a4 {[%clk 0:02:21]}  Nb6 {[%clk 0:02:18]} 18. axb5 {[%clk 0:02:17]}  axb5 {[%clk 0:02:17]} 19. Ra7 {[%clk 0:02:16]}  Nd5 {[%clk 0:02:09]} 20. Rxd5 {[%clk 0:02:15]}  exd5 {[%clk 0:02:07]} 21. Qxd5 {[%clk 0:02:15]}  Rd8 {[%clk 0:01:57]} 22. Qb7 {[%clk 0:02:14]}  Ra8 {[%clk 0:01:48]} 23. Qxc7 {[%clk 0:02:10]}  Rxa7 {[%clk 0:01:42]} 24. Qxa7 {[%clk 0:02:09]}  Qa8 {[%clk 0:01:40]} 25. Qe3 {[%clk 0:01:46]}  Qd5 {[%clk 0:01:32]} 26. f3 {[%clk 0:01:45]}  Rc8 {[%clk 0:01:25]} 27. Nc3 {[%clk 0:01:25]}  Qc4 {[%clk 0:01:21]} 28. h4 {[%clk 0:01:12]}  h6 {[%clk 0:01:20]} 29. Ne4 {[%clk 0:01:07]}  Qd5 {[%clk 0:01:05]} 30. Nd6 {[%clk 0:01:03]}  Rc2 {[%clk 0:00:58]} 31. b4 {[%clk 0:00:46]}  Qd1 {[%clk 0:00:44]} 32. Kf2 {[%clk 0:00:44]}  Bd8 {[%clk 0:00:37]} 33. Ne4 {[%clk 0:00:24]}  Bb6 {[%clk 0:00:34]} 34. Nc5 {[%clk 0:00:23]}  Qd5 {[%clk 0:00:30]} 35. e6 {[%clk 0:00:18]}  Bxc5 {[%clk 0:00:16]} 36. bxc5 {[%clk 0:00:17]}  Qxc5 {[%clk 0:00:15]} 37. e7 {[%clk 0:00:08]}  Qxe3+ {[%clk 0:00:14]} 38. Kxe3 {[%clk 0:00:07]}  Rc8 {[%clk 0:00:14]} 39. Bc7 {[%clk 0:00:07]}  f6 {[%clk 0:00:13]} 0-1


[Site "https://www.chess.com"]

[Event "Titled Tuesday Blitz March 15 Early 2022"]
[White "Hoffmann, Asa"]
[Black "Myshakov, Fyodor"]
[WhiteFideId "2001470"]
[BlackFideId "14111284"]
[WhiteElo "2117"]
[BlackElo "2310"]
[Result "0-1"]
[Round "07"]
[TimeControl "180+1"]
[Date "2022.03.15"]
[WhiteClock "0:00:55"]
[BlackClock "0:01:25"]

1. d4 {[%clk 0:02:58]}  d5 {[%clk 0:02:56]} 2. Bg5 {[%clk 0:02:57]}  Nf6 {[%clk 0:02:57]} 3. Nd2 {[%clk 0:02:57]}  Nbd7 {[%clk 0:02:57]} 4. e3 {[%clk 0:02:53]}  e6 {[%clk 0:02:57]} 5. Bd3 {[%clk 0:02:51]}  Be7 {[%clk 0:02:57]} 6. f4 {[%clk 0:02:47]}  h6 {[%clk 0:02:58]} 7. Bh4 {[%clk 0:02:47]}  b6 {[%clk 0:02:56]} 8. Ngf3 {[%clk 0:02:46]}  c5 {[%clk 0:02:55]} 9. c3 {[%clk 0:02:46]}  cxd4 {[%clk 0:02:55]} 10. exd4 {[%clk 0:02:46]}  Nh5 {[%clk 0:02:49]} 11. Bxe7 {[%clk 0:02:42]}  Qxe7 {[%clk 0:02:49]} 12. g3 {[%clk 0:02:41]}  Nhf6 {[%clk 0:02:46]} 13. Ne5 {[%clk 0:02:39]}  Bb7 {[%clk 0:02:47]} 14. Qe2 {[%clk 0:02:38]}  O-O {[%clk 0:02:44]} 15. O-O {[%clk 0:02:37]}  Nh7 {[%clk 0:02:39]} 16. f5 {[%clk 0:02:33]}  Nxe5 {[%clk 0:02:31]} 17. Qxe5 {[%clk 0:02:25]}  Ng5 {[%clk 0:02:26]} 18. h4 {[%clk 0:02:19]}  f6 {[%clk 0:02:20]} 19. Qe3 {[%clk 0:02:10]}  Ne4 {[%clk 0:02:13]} 20. Nxe4 {[%clk 0:02:01]}  exf5 {[%clk 0:02:11]} 21. Rxf5 {[%clk 0:01:55]}  dxe4 {[%clk 0:02:12]} 22. Re1 {[%clk 0:01:44]}  Rae8 {[%clk 0:01:40]} 23. Rf4 {[%clk 0:01:34]}  f5 {[%clk 0:01:39]} 24. Bc4+ {[%clk 0:01:28]}  Kh8 {[%clk 0:01:38]} 25. d5 {[%clk 0:01:19]}  Qc5 {[%clk 0:01:35]} 26. Qxc5 {[%clk 0:01:17]}  bxc5 {[%clk 0:01:36]} 27. Kf2 {[%clk 0:01:17]}  g5 {[%clk 0:01:35]} 28. hxg5 {[%clk 0:01:10]}  hxg5 {[%clk 0:01:34]} 29. Ke3 {[%clk 0:01:04]}  gxf4+ {[%clk 0:01:34]} 30. Kxf4 {[%clk 0:01:04]}  Kg7 {[%clk 0:01:33]} 31. d6 {[%clk 0:01:03]}  Rd8 {[%clk 0:01:33]} 32. Rd1 {[%clk 0:01:03]}  Rf6 {[%clk 0:01:31]} 33. Ke5 {[%clk 0:01:02]}  e3 {[%clk 0:01:31]} 34. Be6 {[%clk 0:00:57]}  Re8 {[%clk 0:01:25]} 35. d7 {[%clk 0:00:55]}  Rfxe6+ {[%clk 0:01:25]} 36. Kxf5 {[%clk 0:00:55]}  Rf6+ {[%clk 0:01:26]} 37. Kg5 {[%clk 0:00:55]}  Rd8 {[%clk 0:01:25]} 0-1


[Site "https://www.chess.com"]

[Event "Titled Tuesday Blitz March 15 Early 2022"]
[White "Iljin, Timofey"]
[Black "P., Komal Kishore"]
[WhiteFideId "14110180"]
[BlackFideId "5016703"]
[WhiteElo "2396"]
[BlackElo "2120"]
[Result "1-0"]
[Round "07"]
[TimeControl "180+1"]
[Date "2022.03.15"]
[WhiteClock "0:00:47"]
[BlackClock "0:00:13"]

1. e4 {[%clk 0:03:00]}  c6 {[%clk 0:02:54]} 2. d4 {[%clk 0:03:00]}  d5 {[%clk 0:02:55]} 3. e5 {[%clk 0:03:00]}  Bf5 {[%clk 0:02:54]} 4. h4 {[%clk 0:03:00]}  h5 {[%clk 0:02:53]} 5. Be2 {[%clk 0:03:01]}  g6 {[%clk 0:02:52]} 6. c4 {[%clk 0:03:00]}  e6 {[%clk 0:02:51]} 7. Nc3 {[%clk 0:03:00]}  Nh6 {[%clk 0:02:45]} 8. Nf3 {[%clk 0:02:54]}  Be7 {[%clk 0:02:42]} 9. Bg5 {[%clk 0:02:53]}  Nd7 {[%clk 0:02:40]} 10. cxd5 {[%clk 0:02:51]}  cxd5 {[%clk 0:02:39]} 11. Nb5 {[%clk 0:02:46]}  Qa5+ {[%clk 0:01:46]} 12. Kf1 {[%clk 0:02:30]}  Bxg5 {[%clk 0:01:41]} 13. Nxg5 {[%clk 0:02:26]}  Ke7 {[%clk 0:01:32]} 14. Qb3 {[%clk 0:02:13]}  Rab8 {[%clk 0:01:16]} 15. g3 {[%clk 0:02:10]}  Rhd8 {[%clk 0:01:12]} 16. Kg2 {[%clk 0:02:10]}  Bg4 {[%clk 0:01:08]} 17. Bxg4 {[%clk 0:01:56]}  Nxg4 {[%clk 0:01:02]} 18. Nd6 {[%clk 0:01:55]}  Nh6 {[%clk 0:00:59]} 19. Qf3 {[%clk 0:01:47]}  Rf8 {[%clk 0:00:48]} 20. Qf4 {[%clk 0:01:33]}  Nf5 {[%clk 0:00:43]} 21. Nxf5+ {[%clk 0:01:32]}  gxf5 {[%clk 0:00:40]} 22. Nh7 {[%clk 0:01:25]}  Rg8 {[%clk 0:00:38]} 23. Qh6 {[%clk 0:01:21]}  Qb4 {[%clk 0:00:34]} 24. Nf6 {[%clk 0:01:15]}  Nxf6 {[%clk 0:00:31]} 25. Qxf6+ {[%clk 0:01:12]}  Ke8 {[%clk 0:00:30]} 26. Rac1 {[%clk 0:01:11]}  Rd8 {[%clk 0:00:14]} 27. Rc7 {[%clk 0:00:48]}  Rg6 {[%clk 0:00:13]} 28. Qxf7# {[%clk 0:00:47]} 1-0


[Site "https://www.chess.com"]

[Event "Titled Tuesday Blitz March 15 Early 2022"]
[White "Ismayil, Malak"]
[Black "Goryachkina, Aleksandra"]
[WhiteFideId "13412604"]
[BlackFideId "4147103"]
[WhiteElo "1879"]
[BlackElo "2426"]
[Result "1/2-1/2"]
[Round "07"]
[TimeControl "180+1"]
[Date "2022.03.15"]
[WhiteClock "0:00:05"]
[BlackClock "0:00:09"]

1. e4 {[%clk 0:01:56]}  e6 {[%clk 0:02:59]} 2. d4 {[%clk 0:01:55]}  d5 {[%clk 0:02:59]} 3. Nd2 {[%clk 0:01:54]}  c5 {[%clk 0:02:59]} 4. exd5 {[%clk 0:01:53]}  Qxd5 {[%clk 0:03:00]} 5. Ngf3 {[%clk 0:01:53]}  cxd4 {[%clk 0:03:00]} 6. Bc4 {[%clk 0:01:53]}  Qd7 {[%clk 0:03:01]} 7. O-O {[%clk 0:01:53]}  Nc6 {[%clk 0:03:01]} 8. Nb3 {[%clk 0:01:54]}  a6 {[%clk 0:03:01]} 9. Nbxd4 {[%clk 0:01:54]}  Nxd4 {[%clk 0:03:01]} 10. Nxd4 {[%clk 0:01:55]}  Qc7 {[%clk 0:03:01]} 11. Bb3 {[%clk 0:01:55]}  Bd6 {[%clk 0:03:01]} 12. h3 {[%clk 0:01:55]}  Nf6 {[%clk 0:02:56]} 13. c3 {[%clk 0:01:54]}  O-O {[%clk 0:02:51]} 14. Re1 {[%clk 0:01:44]}  Bh2+ {[%clk 0:02:48]} 15. Kh1 {[%clk 0:01:43]}  Bf4 {[%clk 0:02:47]} 16. Qf3 {[%clk 0:01:41]}  Bxc1 {[%clk 0:02:45]} 17. Raxc1 {[%clk 0:01:42]}  Bd7 {[%clk 0:02:44]} 18. Qe3 {[%clk 0:01:35]}  Rad8 {[%clk 0:02:23]} 19. Rcd1 {[%clk 0:01:33]}  Bc8 {[%clk 0:02:14]} 20. Nf3 {[%clk 0:01:30]}  b5 {[%clk 0:02:01]} 21. Qe5 {[%clk 0:01:03]}  Qxe5 {[%clk 0:01:56]} 22. Nxe5 {[%clk 0:01:04]}  Bb7 {[%clk 0:01:54]} 23. Kg1 {[%clk 0:00:57]}  Nd5 {[%clk 0:01:39]} 24. Nd3 {[%clk 0:00:55]}  Rc8 {[%clk 0:01:35]} 25. g3 {[%clk 0:00:32]}  Rfd8 {[%clk 0:01:34]} 26. Ne5 {[%clk 0:00:31]}  Kf8 {[%clk 0:01:22]} 27. Kf1 {[%clk 0:00:28]}  f6 {[%clk 0:01:18]} 28. Ng4 {[%clk 0:00:28]}  e5 {[%clk 0:01:17]} 29. Ke2 {[%clk 0:00:24]}  a5 {[%clk 0:01:08]} 30. Ne3 {[%clk 0:00:24]}  Nxe3 {[%clk 0:00:47]} 31. Kxe3 {[%clk 0:00:25]}  a4 {[%clk 0:00:41]} 32. Be6 {[%clk 0:00:22]}  Rb8 {[%clk 0:00:31]} 33. a3 {[%clk 0:00:21]}  Ke7 {[%clk 0:00:31]} 34. Ba2 {[%clk 0:00:19]}  Bc6 {[%clk 0:00:26]} 35. Bb1 {[%clk 0:00:18]}  g6 {[%clk 0:00:25]} 36. Be4 {[%clk 0:00:19]}  Bxe4 {[%clk 0:00:23]} 37. Kxe4 {[%clk 0:00:20]}  Ke6 {[%clk 0:00:24]} 38. g4 {[%clk 0:00:20]}  f5+ {[%clk 0:00:23]} 39. gxf5+ {[%clk 0:00:20]}  gxf5+ {[%clk 0:00:24]} 40. Ke3 {[%clk 0:00:20]}  Rbc8 {[%clk 0:00:22]} 41. Rg1 {[%clk 0:00:19]}  Rg8 {[%clk 0:00:21]} 42. Kf3 {[%clk 0:00:16]}  Rg6 {[%clk 0:00:20]} 43. h4 {[%clk 0:00:15]}  Rcg8 {[%clk 0:00:19]} 44. Rh1 {[%clk 0:00:13]}  Rg4 {[%clk 0:00:18]} 45. Rd2 {[%clk 0:00:09]}  Rf4+ {[%clk 0:00:18]} 46. Ke2 {[%clk 0:00:08]}  Rgg4 {[%clk 0:00:18]} 47. Rhd1 {[%clk 0:00:07]}  Rg2 {[%clk 0:00:07]} 48. Rd6+ {[%clk 0:00:05]}  Ke7 {[%clk 0:00:07]} 49. Rd7+ {[%clk 0:00:05]}  Ke8 {[%clk 0:00:06]} 50. Rd8+ {[%clk 0:00:03]}  Ke7 {[%clk 0:00:06]} 51. R1d7+ {[%clk 0:00:03]}  Ke6 {[%clk 0:00:06]} 52. Rd6+ {[%clk 0:00:03]}  Ke7 {[%clk 0:00:07]} 53. R8d7+ {[%clk 0:00:03]}  Ke8 {[%clk 0:00:07]} 54. Rd8+ {[%clk 0:00:04]}  Ke7 {[%clk 0:00:08]} 55. R8d7+ {[%clk 0:00:04]}  Ke8 {[%clk 0:00:08]} 56. Rd8+ {[%clk 0:00:05]}  Ke7 {[%clk 0:00:09]} 1/2-1/2


[Site "https://www.chess.com"]

[Event "Titled Tuesday Blitz March 15 Early 2022"]
[White "Kovanova, Baira"]
[Black "Tay, Junior"]
[WhiteFideId "4164083"]
[BlackFideId "5800439"]
[WhiteElo "2190"]
[BlackElo "2216"]
[Result "0-1"]
[Round "07"]
[TimeControl "180+1"]
[Date "2022.03.15"]
[WhiteClock "0:01:36"]
[BlackClock "0:01:43"]

1. e4 {[%clk 0:02:55]}  c5 {[%clk 0:02:59]} 2. Nf3 {[%clk 0:02:54]}  d6 {[%clk 0:03:00]} 3. d4 {[%clk 0:02:54]}  cxd4 {[%clk 0:03:00]} 4. Nxd4 {[%clk 0:02:55]}  Nf6 {[%clk 0:03:00]} 5. Nc3 {[%clk 0:02:55]}  g6 {[%clk 0:03:01]} 6. f3 {[%clk 0:02:53]}  Nc6 {[%clk 0:03:00]} 7. Be3 {[%clk 0:02:53]}  h5 {[%clk 0:03:00]} 8. Qd2 {[%clk 0:02:53]}  Nxd4 {[%clk 0:02:59]} 9. Bxd4 {[%clk 0:02:53]}  Bh6 {[%clk 0:02:59]} 10. Be3 {[%clk 0:02:53]}  Bxe3 {[%clk 0:02:59]} 11. Qxe3 {[%clk 0:02:53]}  Be6 {[%clk 0:02:58]} 12. Be2 {[%clk 0:02:51]}  Qa5 {[%clk 0:02:55]} 13. O-O {[%clk 0:02:50]}  Rc8 {[%clk 0:02:55]} 14. Kh1 {[%clk 0:02:48]}  h4 {[%clk 0:02:32]} 15. f4 {[%clk 0:02:46]}  h3 {[%clk 0:02:21]} 16. g3 {[%clk 0:02:40]}  Qb4 {[%clk 0:02:21]} 17. Bd3 {[%clk 0:02:24]}  Qxb2 {[%clk 0:02:12]} 18. Nb5 {[%clk 0:02:20]}  Ng4 {[%clk 0:02:02]} 19. Qg1 {[%clk 0:01:58]}  Bc4 {[%clk 0:01:51]} 20. Rab1 {[%clk 0:01:39]}  Bxd3 {[%clk 0:01:45]} 21. Rxb2 {[%clk 0:01:36]}  Bxe4+ {[%clk 0:01:43]} 0-1


[Site "https://www.chess.com"]